bitfinex/quotes_BTCUSD_20230115
["timestamp","ask_amount","ask_price","bid_price","bid_amount"]
[1673784420661,0.14443277,20737.0,20736.0,1.1651979]
[1673784420918,0.14443277,20737.0,20736.0,0.964485]
[1673784421189,0.68330485,20737.0,20736.0,1.018485]
[1673784421453,0.46566577,20737.0,20736.0,0.482018]
[1673784421748,0.46666577,20737.0,20736.0,0.536018]
[1673784422005,0.36207185,20737.0,20736.0,0.536018]
[1673784422287,0.68330485,20737.0,20736.0,0.054]
[1673784422561,1.64794459,20737.0,20736.0,0.054]
[1673784422834,1.64694561,20737.0,20735.0,1.15627708]
[1673784423113,0.1454343,20737.0,20736.0,0.054]
[1673784423391,0.1444343,20737.0,20735.0,1.15627708]
[1673784423643,0.1554343,20737.0,20735.0,1.15627708]
[1673784424168,0.1564343,20737.0,20735.0,1.21027708]
[1673784424468,0.1564343,20737.0,20735.0,0.67400108]
[1673784424469,0.321233,20736.0,20735.0,0.67400108]
[1673784424728,0.36207338,20737.0,20735.0,0.72800108]
[1673784424984,0.1454343,20737.0,20735.0,0.72800108]
[1673784425250,0.36207338,20737.0,20735.0,0.72800108]
[1673784425508,0.36207338,20737.0,20736.0,0.18499052]
[1673784425509,0.1444343,20737.0,20736.0,0.18499052]
[1673784425794,0.001,20737.0,20736.0,0.18499052]
[1673784426050,0.14455055,20738.0,20736.0,0.18499052]
[1673784426303,0.001,20737.0,20736.0,0.66724252]
[1673784426591,0.14455055,20738.0,20736.0,0.66724252]
[1673784426847,0.011,20737.0,20736.0,0.66724252]
[1673784427376,0.011,20737.0,20736.0,0.72124252]
[1673784427634,0.14455055,20738.0,20736.0,0.66724252]
[1673784427926,0.00111625,20738.0,20737.0,0.18529943]
[1673784428199,0.00111625,20738.0,20737.0,0.63656969]
[1673784428500,0.00111625,20738.0,20737.0,1.95943082]
[1673784428754,0.00111625,20738.0,20737.0,1.90102769]
[1673784429007,0.00011625,20738.0,20737.0,1.74482006]
[1673784429262,0.00011625,20738.0,20737.0,1.90102769]
[1673784429652,0.00011625,20738.0,20737.0,2.51511372]
[1673784429655,0.00111625,20738.0,20737.0,2.59691372]
[1673784429911,0.00011625,20738.0,20737.0,2.51391372]
[1673784430656,0.00111625,20738.0,20737.0,2.12562006]
[1673784430906,0.00111625,20738.0,20737.0,2.59604351]
[1673784431159,0.00111625,20738.0,20737.0,2.95115187]
[1673784431404,0.00111625,20738.0,20737.0,2.8073595]
[1673784431648,0.00011625,20738.0,20737.0,2.7253595]
[1673784431896,0.00111625,20738.0,20737.0,3.01295058]
[1673784432143,0.00011625,20738.0,20737.0,3.01295058]
[1673784432396,0.00111625,20738.0,20737.0,3.01295058]
[1673784432640,0.00011625,20738.0,20737.0,2.86911185]
[1673784432900,0.00111625,20738.0,20737.0,2.8073595]
[1673784433152,0.00111625,20738.0,20737.0,2.51381395]
[1673784433385,0.00211625,20738.0,20737.0,1.68182769]
[1673784433628,0.00011625,20738.0,20737.0,1.82781719]
[1673784434121,0.00011625,20738.0,20737.0,1.59982769]
[1673784434368,0.00011625,20738.0,20737.0,1.89982769]
[1673784434617,0.00111625,20738.0,20737.0,1.98182769]
[1673784434914,0.00011625,20738.0,20737.0,1.89982769]
[1673784435160,0.00111625,20738.0,20737.0,2.12558235]
[1673784435403,0.00011625,20738.0,20737.0,2.04358235]
[1673784435667,0.00111625,20738.0,20737.0,2.12558235]
[1673784435895,0.00011625,20738.0,20737.0,1.89982769]
[1673784436141,0.00111625,20738.0,20737.0,1.87525531]
[1673784436398,0.00011625,20738.0,20737.0,1.79325531]
[1673784436646,0.00011625,20738.0,20737.0,1.78475531]
[1673784436879,0.00011625,20738.0,20737.0,1.63508731]
[1673784437132,0.00011625,20738.0,20737.0,1.78475531]
[1673784437380,0.00111625,20738.0,20737.0,1.67332769]
[1673784437624,0.00011625,20738.0,20737.0,1.59132769]
[1673784437866,0.001,20738.0,20737.0,1.68182769]
[1673784438119,0.001,20738.0,20737.0,1.89982769]
[1673784438374,0.002,20738.0,20737.0,2.73589935]
[1673784438637,0.01465024,20741.0,20737.0,2.72583868]
[1673784438884,0.01465024,20741.0,20738.0,0.48570169]
[1673784439133,0.01465024,20741.0,20739.0,2.07339969]
[1673784439393,0.01465024,20741.0,20740.0,0.48570169]
[1673784439659,0.01465024,20741.0,20740.0,1.59966069]
[1673784440635,0.01565024,20741.0,20740.0,1.59966069]
[1673784440856,0.01465024,20741.0,20740.0,1.59966069]
[1673784441212,0.01565024,20741.0,20740.0,1.8461505]
[1673784441471,0.01465024,20741.0,20740.0,1.7631505]
[1673784441721,0.01565024,20741.0,20740.0,1.68266069]
[1673784442279,0.01465024,20741.0,20740.0,1.79928353]
[1673784442548,0.01565024,20741.0,20740.0,1.85842324]
[1673784443336,0.01465024,20741.0,20740.0,1.77542324]
[1673784443603,0.01565024,20741.0,20740.0,1.85842324]
[1673784443856,0.01465024,20741.0,20740.0,1.77542324]
[1673784444115,0.01565024,20741.0,20740.0,1.85842324]
[1673784444369,0.01565024,20741.0,20740.0,0.083]
[1673784444370,0.47964806,20741.0,20740.0,0.083]
[1673784444633,0.79986306,20741.0,20738.0,0.7091166]
[1673784444903,0.67037401,20741.0,20740.0,0.083]
[1673784445157,0.47864806,20741.0,20738.0,0.7091166]
[1673784445418,0.67157974,20741.0,20740.0,0.083]
[1673784445678,0.48085379,20741.0,20740.0,0.083]
[1673784446265,0.80206879,20741.0,20740.0,0.083]
[1673784446528,0.80206879,20741.0,20738.0,0.2269276]
[1673784446529,0.80106879,20741.0,20738.0,0.2269276]
[1673784446786,0.47985379,20741.0,20738.0,0.2269276]
[1673784447050,0.47864806,20741.0,20738.0,0.2269276]
[1673784447310,0.48364806,20741.0,20738.0,0.2269276]
[1673784447792,0.47364806,20741.0,20737.0,1.1706281]
[1673784447794,0.47464806,20741.0,20738.0,0.083]
[1673784448042,0.47464806,20741.0,20738.0,0.30637772]
[1673784449347,0.44704045,20740.0,20738.0,0.30637772]
[1673784449922,0.35304089,20740.0,20738.0,0.083]
[1673784450202,0.321215,20739.0,20738.0,0.083]
[1673784450724,0.321215,20739.0,20738.0,0.22769105]
[1673784450984,0.35404089,20740.0,20738.0,0.70989705]
[1673784451268,0.35304089,20740.0,20738.0,0.70989705]
[1673784451792,0.35304089,20740.0,20738.0,1.19210305]
[1673784452316,0.35404089,20740.0,20738.0,1.27510305]
[1673784452860,0.35404089,20740.0,20738.0,0.79289705]
[1673784452861,0.35524662,20740.0,20738.0,0.79289705]
[1673784453123,0.35404089,20740.0,20738.0,0.083]
[1673784453383,0.35304089,20740.0,20738.0,0.054]
[1673784453635,0.321215,20739.0,20738.0,0.054]
[1673784454206,0.49968092,20740.0,20738.0,0.054]
[1673784454413,0.35524662,20740.0,20738.0,0.054]
[1673784454682,0.46221354,20739.0,20737.0,0.482208]
[1673784454950,0.321215,20738.0,20737.0,0.482208]
[1673784455217,0.46221354,20739.0,20737.0,0.482208]
[1673784455514,0.46221354,20739.0,20738.0,0.054]
[1673784456553,0.46221354,20739.0,20736.0,0.66715294]
[1673784457105,0.46321354,20739.0,20738.0,0.054]
[1673784457369,0.001,20739.0,20738.0,0.536206]
[1673784457623,0.40253935,20741.0,20738.0,0.482206]
[1673784457897,0.001,20739.0,20738.0,0.482206]
[1673784458427,0.001,20739.0,20738.0,1.018412]
[1673784458682,0.46979976,20740.0,20738.0,0.964412]
[1673784458940,0.001,20739.0,20738.0,1.018412]
[1673784459240,0.46979976,20740.0,20738.0,0.964412]
[1673784460279,0.001,20739.0,20738.0,0.536206]
[1673784460540,0.322215,20739.0,20738.0,0.536206]
[1673784460828,0.46979976,20740.0,20738.0,0.482206]
[1673784461077,0.00120573,20739.0,20738.0,0.536206]
[1673784461330,0.61423406,20740.0,20738.0,0.482206]
[1673784461595,0.001,20739.0,20738.0,0.536206]
[1673784461881,0.61423406,20740.0,20738.0,0.482206]
[1673784462379,0.61523406,20740.0,20738.0,0.536206]
[1673784462643,0.47079976,20740.0,20738.0,0.536206]
[1673784462904,0.61543979,20740.0,20738.0,0.482206]
[1673784463720,0.47100549,20740.0,20738.0,0.482206]
[1673784463971,0.47200549,20740.0,20738.0,0.536206]
[1673784464238,0.47100549,20740.0,20738.0,0.482206]
[1673784464492,0.47100549,20740.0,20738.0,0.536206]
[1673784464493,0.61523406,20740.0,20738.0,0.536206]
[1673784464744,0.47079976,20740.0,20738.0,0.69855947]
[1673784465001,0.47179976,20740.0,20738.0,0.75255947]
[1673784465256,0.47079976,20740.0,20738.0,0.69855947]
[1673784465524,0.47179976,20740.0,20738.0,0.75255947]
[1673784465800,0.46979976,20740.0,20738.0,0.69855947]
[1673784466063,0.47079976,20740.0,20738.0,0.75255947]
[1673784466812,0.46979976,20740.0,20738.0,0.69855947]
[1673784467102,0.47079976,20740.0,20738.0,0.75255947]
[1673784467587,0.002,20740.0,20738.0,0.75255947]
[1673784467907,0.001,20740.0,20739.0,0.16262648]
[1673784468153,0.002,20740.0,20739.0,0.16262648]
[1673784468408,0.3939484,20741.0,20739.0,0.16262648]
[1673784468661,0.001,20740.0,20739.0,0.16262648]
[1673784468918,0.39515413,20741.0,20739.0,0.16262648]
[1673784469225,0.011,20740.0,20739.0,0.16262648]
[1673784469749,0.01220573,20740.0,20739.0,0.16262648]
[1673784470225,0.01220573,20740.0,20738.0,0.482186]
[1673784470230,0.00120573,20740.0,20738.0,0.482186]
[1673784470480,0.43872142,20740.0,20739.0,0.083]
[1673784470736,0.43872142,20740.0,20738.0,0.482186]
[1673784471005,0.43872142,20740.0,20739.0,0.482183]
[1673784471006,0.58536145,20740.0,20739.0,0.482183]
[1673784471270,0.43972142,20740.0,20739.0,0.482183]
[1673784471527,0.76193642,20740.0,20739.0,0.482183]
[1673784471788,0.58636145,20740.0,20739.0,0.482183]
[1673784472047,0.58536145,20740.0,20739.0,0.482183]
[1673784472314,0.43872142,20740.0,20739.0,0.482183]
[1673784472603,0.43972142,20740.0,20739.0,1.018366]
[1673784474107,0.001,20740.0,20739.0,1.018366]
[1673784474627,0.001,20740.0,20739.0,1.026866]
[1673784475929,0.1454343,20740.0,20739.0,1.026866]
[1673784476176,0.92900067,20740.0,20739.0,1.026866]
[1673784476430,0.78456637,20740.0,20739.0,1.026866]
[1673784476681,0.46335137,20740.0,20739.0,1.026866]
[1673784477194,0.60778567,20740.0,20739.0,1.026866]
[1673784477468,0.1454343,20740.0,20739.0,1.026866]
[1673784477806,0.1454343,20740.0,20739.0,1.21078377]
[1673784477807,0.001,20740.0,20739.0,1.21078377]
[1673784478792,0.14664003,20740.0,20739.0,0.536183]
[1673784479057,1.10233364,20740.0,20739.0,0.054]
[1673784479351,2.81351357,20740.0,20739.0,0.054]
[1673784479629,1.99882052,20740.0,20736.0,0.76082042]
[1673784479889,0.4263661,20739.0,20736.0,0.76082042]
[1673784480142,0.321215,20738.0,20736.0,0.76082042]
[1673784480436,0.065525,20737.0,20736.0,0.27858042]
[1673784480693,0.43722782,20738.0,20736.0,0.22884108]
[1673784480959,0.58156426,20738.0,20735.0,0.48227]
[1673784481221,0.99100868,20737.0,20734.0,0.48229]
[1673784481496,0.61709205,20736.0,20733.0,0.70535917]
[1673784481805,0.65627739,20735.0,20733.0,1.18256086]
[1673784482062,0.33506239,20735.0,20733.0,1.18256086]
[1673784482326,1.47006521,20736.0,20733.0,1.13356353]
[1673784482327,0.3608411,20736.0,20733.0,1.13356353]
[1673784482596,0.14433644,20735.0,20734.0,0.21076861]
[1673784482869,0.001,20735.0,20734.0,0.21076861]
[1673784483156,0.14533644,20735.0,20734.0,0.21926861]
[1673784483407,0.14533644,20735.0,20734.0,0.490799]
[1673784483665,0.001,20735.0,20734.0,1.14599695]
[1673784484518,0.001,20735.0,20734.0,1.13749695]
[1673784484768,0.83990883,20737.0,20734.0,1.13749695]
[1673784485019,0.001,20735.0,20734.0,1.19149695]
[1673784485267,0.001,20735.0,20734.0,0.70919795]
[1673784485537,0.54665087,20736.0,20734.0,0.65519795]
[1673784486102,0.00120573,20735.0,20734.0,0.65519795]
[1673784486360,0.001,20735.0,20734.0,0.70919795]
[1673784486621,0.3608411,20737.0,20734.0,0.65519795]
[1673784487033,0.3608411,20737.0,20734.0,1.13749695]
[1673784487034,0.3608411,20737.0,20735.0,0.19619701]
[1673784487263,0.00120573,20736.0,20735.0,0.67846001]
[1673784487480,0.14654217,20736.0,20735.0,0.67846001]
[1673784487683,0.85144142,20737.0,20735.0,0.67846001]
[1673784487907,0.85144142,20737.0,20735.0,0.482263]
[1673784488314,0.00120573,20736.0,20735.0,0.482263]
[1673784488571,0.00220573,20736.0,20735.0,0.536263]
[1673784489075,0.00120573,20736.0,20735.0,0.482263]
[1673784489331,0.60657752,20736.0,20735.0,0.536263]
[1673784489616,1.14429718,20736.0,20735.0,0.482263]
[1673784489857,1.14440061,20736.0,20735.0,0.482263]
[1673784490358,0.82318561,20736.0,20734.0,0.482278]
[1673784490620,0.82418561,20736.0,20735.0,0.054]
[1673784490903,0.82318561,20736.0,20734.0,0.482278]
[1673784491156,0.83318561,20736.0,20735.0,0.006]
[1673784491403,0.61668095,20736.0,20735.0,0.006]
[1673784491925,0.60668095,20736.0,20734.0,0.482278]
[1673784492226,0.83418561,20736.0,20734.0,0.482278]
[1673784492485,0.82318561,20736.0,20734.0,0.482278]
[1673784492738,0.61668095,20736.0,20735.0,0.006]
[1673784492988,1.00996074,20736.0,20735.0,0.006]
[1673784493246,1.14431828,20736.0,20734.0,0.482278]
[1673784493748,0.82310381,20736.0,20734.0,0.482278]
[1673784494011,0.42042423,20735.0,20734.0,0.482278]
[1673784494267,0.78128696,20735.0,20732.0,0.53165982]
[1673784494535,0.46557316,20734.0,20732.0,0.53165982]
[1673784494821,0.36086282,20734.0,20732.0,0.53165982]
[1673784495060,0.78128705,20735.0,20732.0,0.70626596]
[1673784495338,0.56478239,20735.0,20733.0,0.22482125]
[1673784495603,0.42042423,20735.0,20733.0,0.22482125]
[1673784495858,0.001,20734.0,20733.0,0.22482125]
[1673784496119,0.42042423,20735.0,20733.0,0.22482125]
[1673784496374,0.43142423,20735.0,20731.0,0.482352]
[1673784496632,0.37067832,20734.0,20732.0,0.20718585]
[1673784497463,0.34608411,20735.0,20732.0,0.20718585]
[1673784497464,0.3852802,20735.0,20732.0,0.20718585]
[1673784497728,0.011,20734.0,20732.0,0.20718585]
[1673784497989,0.3852802,20735.0,20732.0,0.20718585]
[1673784498246,0.001,20734.0,20732.0,0.29018585]
[1673784498509,0.00120573,20734.0,20732.0,0.20718585]
[1673784498994,0.00120573,20734.0,20732.0,0.29018585]
[1673784498995,0.3862802,20735.0,20732.0,0.20718585]
[1673784499245,0.3862802,20735.0,20732.0,0.29018585]
[1673784499502,0.00120573,20734.0,20732.0,0.29018585]
[1673784499768,0.44509869,20734.0,20732.0,0.29018585]
[1673784500295,0.44509869,20734.0,20732.0,0.20718585]
[1673784500546,0.44609869,20734.0,20732.0,0.29018585]
[1673784500800,0.44509869,20734.0,20732.0,0.20718585]
[1673784501055,0.44509869,20734.0,20732.0,0.29018585]
[1673784501056,0.44609869,20734.0,20732.0,0.29018585]
[1673784501579,0.44609869,20734.0,20732.0,0.083]
[1673784501847,0.44509869,20734.0,20731.0,0.64980173]
[1673784502114,0.44353562,20733.0,20731.0,0.64980173]
[1673784503681,0.44353562,20733.0,20731.0,0.70380173]
[1673784504001,0.44353562,20733.0,20731.0,0.16745273]
[1673784504220,0.44453562,20733.0,20731.0,0.22145273]
[1673784506871,0.00120573,20734.0,20731.0,0.64981873]
[1673784506872,0.011,20733.0,20731.0,0.64981873]
[1673784507121,0.45457918,20734.0,20732.0,0.21911727]
[1673784507379,0.001,20733.0,20732.0,0.21911727]
[1673784507641,0.45457918,20734.0,20732.0,0.21911727]
[1673784507933,0.001,20733.0,20732.0,0.21911727]
[1673784508680,0.46557918,20734.0,20732.0,0.21911727]
[1673784508681,0.45457918,20734.0,20732.0,0.21911727]
[1673784509812,0.321215,20733.0,20732.0,0.054]
[1673784510086,0.45557918,20734.0,20732.0,0.054]
[1673784510359,0.41948267,20733.0,20732.0,0.054]
[1673784510625,0.74069767,20733.0,20732.0,0.054]
[1673784511402,0.88505583,20733.0,20732.0,0.054]
[1673784511659,0.88505583,20733.0,20730.0,0.48653756]
[1673784511918,0.57384083,20733.0,20732.0,0.006]
[1673784512187,0.75069767,20733.0,20732.0,0.006]
[1673784512441,0.89505583,20733.0,20732.0,0.006]
[1673784512949,1.13955388,20733.0,20732.0,0.006]
[1673784513215,0.88505583,20733.0,20730.0,0.00416556]
[1673784513480,0.065525,20732.0,20730.0,0.00416556]
[1673784513734,0.56384083,20733.0,20730.0,0.00416556]
[1673784513989,0.57384083,20733.0,20732.0,0.006]
[1673784514509,0.88505583,20733.0,20730.0,0.00416556]
[1673784514760,0.065525,20732.0,20730.0,0.05816556]
[1673784515012,0.45804779,20732.0,20730.0,0.00408165]
[1673784516591,0.45904779,20732.0,20730.0,0.05808165]
[1673784516885,0.45804779,20732.0,20730.0,0.00408165]
[1673784517131,0.45904779,20732.0,20730.0,0.05808165]
[1673784517350,0.00120573,20731.0,20730.0,0.00408165]
[1673784518413,0.48133975,20731.0,20730.0,0.00408165]
[1673784518676,0.80255475,20731.0,20730.0,0.00408165]
[1673784518933,0.94691291,20731.0,20730.0,0.00408165]
[1673784519192,0.95791291,20731.0,20730.0,0.00408165]
[1673784519454,1.13824639,20731.0,20730.0,0.00408165]
[1673784519710,0.94691291,20731.0,20730.0,0.00408165]
[1673784519960,0.47677889,20731.0,20730.0,0.01008165]
[1673784520230,0.33242073,20731.0,20730.0,0.01008165]
[1673784520487,0.01120573,20731.0,20730.0,0.01008165]
[1673784522304,0.15556389,20731.0,20730.0,0.01008165]
[1673784522560,0.15556389,20731.0,20730.0,0.49247365]
[1673784522821,0.01120573,20731.0,20730.0,0.49247365]
[1673784523073,0.01,20731.0,20730.0,0.49247365]
[1673784523326,0.47285906,20731.0,20730.0,0.01008165]
[1673784523581,0.79407406,20731.0,20730.0,0.01008165]
[1673784524102,0.47285906,20731.0,20730.0,0.01008165]
[1673784525418,0.79407406,20731.0,20730.0,0.01008165]
[1673784525667,0.47285906,20731.0,20730.0,0.01008165]
[1673784526191,0.61721722,20731.0,20730.0,0.01008165]
[1673784526445,0.79527979,20731.0,20730.0,0.01008165]
[1673784526701,0.93963795,20731.0,20730.0,0.01008165]
[1673784526958,2.26561445,20731.0,20730.0,0.01008165]
[1673784527219,1.58625073,20731.0,20730.0,0.01008165]
[1673784527482,2.37911913,20731.0,20730.0,0.01008165]
[1673784527997,2.48226903,20731.0,20730.0,0.01008165]
[1673784528257,2.96463803,20731.0,20730.0,0.01008165]
[1673784528570,2.57263602,20731.0,20730.0,0.01008165]
[1673784529332,3.24205414,20731.0,20730.0,0.01008165]
[1673784529586,3.65765185,20731.0,20730.0,0.01008165]
[1673784529894,3.47060273,20731.0,20730.0,0.01008165]
[1673784530346,3.04500502,20731.0,20730.0,0.00408165]
[1673784530601,2.80627565,20731.0,20730.0,0.07514665]
[1673784530852,2.0855406,20731.0,20730.0,0.07514665]
[1673784531115,1.03659632,20731.0,20730.0,0.07414665]
[1673784531366,0.8200458,20731.0,20730.0,0.07414665]
[1673784531629,0.82125153,20731.0,20730.0,0.07414665]
[1673784532112,2.08776794,20731.0,20730.0,0.07514665]
[1673784532405,2.08776794,20731.0,20730.0,0.07414665]
[1673784532406,2.00277053,20731.0,20730.0,0.07414665]
[1673784532664,2.23114823,20731.0,20730.0,0.07514665]
[1673784532917,1.8584162,20731.0,20730.0,0.07414665]
[1673784533163,2.08782708,20731.0,20730.0,0.07514665]
[1673784533412,1.03786705,20731.0,20730.0,0.07414665]
[1673784533670,1.03786705,20731.0,20730.0,0.07514665]
[1673784533920,1.12186705,20731.0,20730.0,0.07414665]
[1673784534169,2.1718024,20731.0,20730.0,0.07514665]
[1673784534418,2.46061475,20731.0,20730.0,0.07514665]
[1673784535190,2.29161475,20731.0,20730.0,0.07414665]
[1673784535464,1.26625911,20731.0,20730.0,0.07514665]
[1673784535712,2.37563775,20731.0,20730.0,0.07414665]
[1673784535969,2.16185347,20731.0,20730.0,0.07514665]
[1673784536240,2.16185347,20731.0,20730.0,0.07414665]
[1673784536241,2.8592618,20731.0,20730.0,0.07414665]
[1673784536482,2.9432618,20731.0,20730.0,0.07514665]
[1673784536723,2.8592618,20731.0,20730.0,0.07414665]
[1673784536982,2.9442618,20731.0,20730.0,0.07514665]
[1673784537236,2.9442618,20731.0,20730.0,0.07414665]
[1673784537237,2.49819666,20731.0,20730.0,0.07414665]
[1673784537498,2.06506609,20731.0,20730.0,0.07414665]
[1673784537750,2.28166371,20731.0,20730.0,0.07414665]
[1673784538523,2.36566371,20731.0,20730.0,0.07514665]
[1673784538773,2.28166371,20731.0,20730.0,0.07414665]
[1673784539023,2.58325254,20731.0,20730.0,0.07514665]
[1673784539281,2.58325252,20731.0,20730.0,0.07414665]
[1673784539542,2.66724227,20731.0,20730.0,0.07514665]
[1673784539792,2.85930741,20731.0,20730.0,0.07414665]
[1673784540046,2.94430741,20731.0,20730.0,0.07514665]
[1673784540303,2.15006609,20731.0,20730.0,0.07514665]
[1673784540555,2.23406609,20731.0,20730.0,0.07614665]
[1673784541078,3.02829167,20731.0,20730.0,0.07614665]
[1673784541350,2.85929167,20731.0,20730.0,0.07414665]
[1673784542619,2.14906609,20731.0,20730.0,0.07514665]
[1673784542877,2.06506609,20731.0,20730.0,0.07414665]
[1673784543129,2.11206609,20731.0,20730.0,0.07514665]
[1673784543667,2.54501643,20731.0,20730.0,0.07514665]
[1673784543964,2.32872964,20731.0,20730.0,0.07514665]
[1673784544215,2.06506609,20731.0,20730.0,0.07414665]
[1673784544475,2.94308432,20731.0,20730.0,0.07514665]
[1673784544732,2.85916646,20731.0,20730.0,0.07414665]
[1673784545008,2.61727197,20731.0,20730.0,0.07514665]
[1673784545490,0.10643155,20728.0,20727.0,0.00505712]
[1673784545497,0.02049155,20728.0,20727.0,0.00505712]
[1673784545751,0.67746937,20728.0,20727.0,0.00505712]
[1673784546004,1.26762928,20728.0,20727.0,0.00505712]
[1673784546253,1.02307837,20728.0,20727.0,0.00505712]
[1673784546555,2.19489957,20728.0,20727.0,0.00505712]
[1673784546779,2.55598016,20728.0,20727.0,0.00505712]
[1673784547035,3.03841916,20728.0,20727.0,0.00505712]
[1673784547280,3.03843143,20728.0,20727.0,0.00505712]
[1673784547529,3.08643143,20728.0,20727.0,0.00605712]
[1673784547772,2.30184567,20728.0,20727.0,0.00605712]
[1673784548018,3.08634748,20728.0,20727.0,0.00605712]
[1673784548269,3.13723748,20728.0,20727.0,0.00605712]
[1673784548505,3.5064957,20728.0,20727.0,0.00605712]
[1673784548782,3.13723748,20728.0,20727.0,0.00605712]
[1673784549062,3.2678567,20728.0,20727.0,0.00605712]
[1673784549305,3.26906243,20728.0,20727.0,0.00605712]
[1673784549577,2.50754637,20728.0,20727.0,0.00605712]
[1673784551384,2.70116868,20728.0,20727.0,0.00605712]
[1673784551710,1.7362043,20728.0,20727.0,0.00605712]
[1673784551887,2.57063568,20728.0,20727.0,0.00605712]
[1673784552139,2.35402762,20728.0,20727.0,0.00605712]
[1673784552384,3.13868863,20728.0,20727.0,0.00605712]
[1673784552633,3.63150368,20728.0,20727.0,0.00605712]
[1673784553153,2.57597664,20728.0,20727.0,0.00605712]
[1673784553404,0.76621046,20728.0,20727.0,0.00605712]
[1673784553652,0.71821046,20728.0,20727.0,0.00505712]
[1673784553904,0.74268546,20728.0,20727.0,0.00505712]
[1673784554161,0.65268546,20728.0,20727.0,0.00505712]
[1673784554405,1.01892046,20728.0,20727.0,0.00505712]
[1673784554909,0.97392046,20728.0,20727.0,0.00505712]
[1673784555167,1.06392046,20728.0,20727.0,0.00505712]
[1673784555425,1.19049343,20728.0,20727.0,0.00505712]
[1673784555674,1.23549343,20728.0,20727.0,0.00505712]
[1673784555925,1.23313043,20728.0,20727.0,0.00505712]
[1673784556428,1.18813043,20728.0,20727.0,0.00505712]
[1673784556724,1.27813043,20728.0,20727.0,0.00505712]
[1673784556945,1.18933616,20728.0,20727.0,0.00505712]
[1673784557192,1.23433616,20728.0,20727.0,0.00505712]
[1673784557452,1.18933616,20728.0,20727.0,0.00505712]
[1673784557692,1.27933616,20728.0,20727.0,0.00505712]
[1673784557939,1.18933616,20728.0,20727.0,0.00505712]
[1673784558687,1.37877399,20728.0,20727.0,0.00505712]
[1673784558935,2.34390302,20728.0,20727.0,0.00505712]
[1673784559189,2.9290619,20728.0,20727.0,0.00505712]
[1673784559451,3.05970403,20728.0,20727.0,0.00505712]
[1673784559710,0.1,20727.0,20724.0,0.00459357]
[1673784559959,0.36106297,20725.0,20724.0,0.00459357]
[1673784560227,0.82754288,20725.0,20724.0,0.00459357]
[1673784560511,1.89267191,20725.0,20724.0,0.00459357]
[1673784560987,1.67620109,20725.0,20724.0,0.00459357]
[1673784561246,2.9579405,20725.0,20724.0,0.00459357]
[1673784561491,2.83223972,20725.0,20724.0,0.00459357]
[1673784562011,3.31474872,20725.0,20724.0,0.00459357]
[1673784562251,2.34961969,20725.0,20724.0,0.00459357]
[1673784562505,3.22388887,20725.0,20724.0,0.00459357]
[1673784562756,2.06098836,20725.0,20724.0,0.00459357]
[1673784564027,2.20406381,20725.0,20724.0,0.00459357]
[1673784564338,0.87826953,20725.0,20724.0,0.00459357]
[1673784564527,0.55703453,20725.0,20724.0,0.00459357]
[1673784565558,0.91781081,20725.0,20724.0,0.00459357]
[1673784565810,1.23904581,20725.0,20724.0,0.00459357]
[1673784566326,1.1480427,20725.0,20724.0,0.00459357]
[1673784566584,1.2567043,20725.0,20724.0,0.00459357]
[1673784566866,1.11242623,20725.0,20724.0,0.00459357]
[1673784567602,1.40226329,20725.0,20724.0,0.00459357]
[1673784568392,1.2578941,20725.0,20724.0,0.00459357]
[1673784568895,1.041399,20725.0,20724.0,0.00459357]
[1673784569161,1.2578941,20725.0,20724.0,0.00459357]
[1673784569458,1.041399,20725.0,20724.0,0.00459357]
[1673784569717,0.79185957,20725.0,20724.0,0.00459357]
[1673784569974,1.08532162,20725.0,20724.0,0.00459357]
[1673784570232,1.03205948,20725.0,20724.0,0.00459357]
[1673784570493,1.08529096,20725.0,20724.0,0.00459357]
[1673784571005,1.17627118,20725.0,20724.0,0.00459357]
[1673784572282,1.08527118,20725.0,20724.0,0.00459357]
[1673784573063,0.95977608,20725.0,20724.0,0.00459357]
[1673784573316,1.17627118,20725.0,20724.0,0.00459357]
[1673784573830,0.79180913,20725.0,20724.0,0.00459357]
[1673784574108,0.93622876,20725.0,20724.0,0.00459357]
[1673784574361,1.90152523,20725.0,20724.0,0.00459357]
[1673784574660,1.81052523,20725.0,20724.0,0.00459357]
[1673784574879,1.58709318,20725.0,20724.0,0.00459357]
[1673784575142,2.78778329,20725.0,20724.0,0.00459357]
[1673784575955,2.69678329,20725.0,20724.0,0.00459357]
[1673784576164,2.85545723,20725.0,20724.0,0.00459357]
[1673784576374,2.4758259,20725.0,20724.0,0.00459357]
[1673784576625,2.85545723,20725.0,20724.0,0.00459357]
[1673784576866,2.76445723,20725.0,20724.0,0.00459357]
[1673784577112,2.85545723,20725.0,20724.0,0.00459357]
[1673784577424,3.19366152,20725.0,20724.0,0.00459357]
[1673784577673,0.54256585,20724.0,20723.0,0.00867897]
[1673784577918,1.22483863,20724.0,20723.0,0.00867897]
[1673784578169,1.44119697,20724.0,20723.0,0.00867897]
[1673784578425,1.22483863,20724.0,20723.0,0.00867897]
[1673784578670,1.44119697,20724.0,20723.0,0.00867897]
[1673784578911,1.22483863,20724.0,20723.0,0.00867897]
[1673784579156,1.44119697,20724.0,20723.0,0.00867897]
[1673784579398,1.34119697,20724.0,20723.0,0.00867897]
[1673784579663,0.77227278,20724.0,20723.0,0.00867897]
[1673784579902,2.66181281,20724.0,20723.0,0.00867897]
[1673784580150,2.58077902,20724.0,20723.0,0.00867897]
[1673784580429,3.07444945,20724.0,20723.0,0.00867897]
[1673784580689,2.85804852,20724.0,20723.0,0.00867897]
[1673784580951,3.5671346,20724.0,20723.0,0.00867897]
[1673784581186,2.85904852,20724.0,20723.0,0.00867897]
[1673784581708,2.36537809,20724.0,20723.0,0.00867897]
[1673784582250,3.42749311,20724.0,20723.0,0.00867897]
[1673784582486,3.51849311,20724.0,20723.0,0.00867897]
[1673784583260,3.16488875,20724.0,20723.0,0.00867897]
[1673784583780,3.17641096,20724.0,20723.0,0.00867897]
[1673784584289,3.08541096,20724.0,20723.0,0.00867897]
[1673784585323,3.17641096,20724.0,20723.0,0.00867897]
[1673784585577,2.8156218,20724.0,20723.0,0.00867897]
[1673784585850,2.3330898,20724.0,20723.0,0.00867897]
[1673784586363,2.74922102,20724.0,20723.0,0.00867897]
[1673784586899,3.10999045,20724.0,20723.0,0.00867897]
[1673784587432,2.74922102,20724.0,20723.0,0.00867897]
[1673784590530,3.23175302,20724.0,20723.0,0.00867897]
[1673784593670,3.66502859,20724.0,20723.0,0.00867897]
[1673784597800,0.1,20723.0,20721.0,0.00090764]
[1673784598051,1.7251125,20722.0,20721.0,0.00090764]
[1673784598301,2.6904468,20722.0,20721.0,0.00090764]
[1673784598553,3.05172243,20722.0,20721.0,0.00090764]
[1673784599557,3.14172243,20722.0,20721.0,0.00090764]
[1673784600313,3.50794417,20722.0,20721.0,0.00090764]